bitfinex-derivatives/quotes_ETHF0:USTF0_20241228
["timestamp","ask_amount","ask_price","bid_price","bid_amount"]
[1735344001673,8.20974849,3335.9,3334.8,0.4604]
[1735344002875,3.2078,3335.6,3334.8,0.4604]
[1735344003172,0.9072,3335.5,3334.8,0.4604]
[1735344003373,1.3674,3335.5,3334.8,0.4604]
[1735344005571,0.4602,3335.5,3334.8,0.4604]
[1735344005778,0.4602,3335.5,3335.1,3.2078]
[1735344005980,3.2078,3335.6,3335.2,0.853]
[1735344006374,3.2078,3335.6,3335.3,0.4476]
[1735344008678,0.00194849,3335.9,3335.5,3.2078]
[1735344008881,3.2078,3336.5,3335.5,3.2078]
[1735344009084,3.2078,3336.5,3335.9,3.2078]
[1735344009383,3.2078,3336.5,3336.0,1.3078]
[1735344009871,3.2078,3336.5,3335.5,7.90349883]
[1735344010072,0.4589,3336.4,3335.5,7.90349883]
[1735344010274,0.4589,3336.4,3335.6,1.3204]
[1735344010474,0.4589,3336.4,3335.6,0.4405]
[1735344010672,0.4589,3336.4,3335.5,7.90349883]
[1735344010673,5.4589,3336.4,3335.5,7.90349883]
[1735344010882,3.2078,3336.2,3335.4,0.4484]
[1735344011184,3.2078,3335.8,3335.4,0.4484]
[1735344011375,0.4538,3335.7,3335.0,3.2078]
[1735344011577,0.8883,3335.7,3335.0,3.2078]
[1735344011781,0.4277,3335.6,3335.0,3.2078]
[1735344012176,0.24054072,3336.5,3335.0,3.2078]
[1735344012379,0.8815,3336.4,3335.4,3.2078]
[1735344012576,1.316,3336.4,3335.5,1.3475]
[1735344013382,3.2078,3335.9,3335.5,1.3475]
[1735344013583,0.8962,3335.8,3335.5,0.8889]
[1735344014476,0.4494,3335.8,3335.5,0.8889]
[1735344015185,0.4494,3335.8,3335.1,0.4586]
[1735344015378,0.4468,3335.7,3335.2,0.9193]
[1735344016082,0.4468,3335.7,3335.0,3.2078]
[1735344016484,0.4494,3335.8,3335.0,3.2078]
[1735344017280,0.4275,3335.7,3335.0,3.2078]
[1735344019383,3.2078,3336.3,3335.0,8.2078]
[1735344019682,3.2078,3336.3,3335.4,3.2078]
[1735344019882,3.2078,3336.3,3335.5,2.5623]
[1735344020389,3.2078,3336.7,3335.9,3.2078]
[1735344020689,3.2078,3336.7,3336.0,0.4467]
[1735344021184,3.2078,3336.7,3336.1,0.4239]
[1735344021382,3.2078,3336.7,3336.2,0.4651]
[1735344023289,0.4518,3336.6,3336.2,0.4651]
[1735344024086,3.2078,3336.7,3336.2,0.4651]
[1735344025990,3.2078,3336.7,3336.1,0.4239]
[1735344026184,3.2078,3336.7,3336.2,0.4298]
[1735344026893,3.6596,3337.1,3336.4,3.2078]
[1735344027187,3.2078,3337.1,3336.4,4.4248]
[1735344027387,3.2078,3337.1,3336.5,0.4593]
[1735344027586,0.9209,3337.0,3336.5,0.4593]
[1735344029391,0.4593,3337.0,3336.5,0.4593]
[1735344029592,3.2078,3337.1,3336.5,0.4593]
[1735344030397,3.2078,3337.5,3336.8,3.2078]
[1735344030589,3.2078,3337.5,3336.9,0.9231]
[1735344030895,0.3001,3337.0,3336.9,0.9231]
[1735344031791,0.3001,3337.0,3336.9,0.4675]
[1735344031996,3.2078,3337.5,3336.5,0.9178]
[1735344032196,0.75017,3337.4,3336.6,0.4675]
[1735344032393,0.30012,3336.8,3336.6,0.4675]
[1735344032593,0.30013,3336.7,3336.6,0.4675]
[1735344032895,0.4592,3337.2,3336.6,0.76763]
[1735344033087,0.4592,3337.2,3336.6,0.4675]
[1735344033293,1.20942,3337.2,3336.5,0.9178]
[1735344033498,0.30014,3336.6,3336.5,0.9178]
[1735344039098,0.30014,3336.6,3336.5,1.3674]
[1735344039295,0.4614,3336.8,3336.5,1.3674]
[1735344039496,3.50791,3336.9,3336.7,0.30012]
[1735344039894,3.2078,3336.9,3336.5,1.3674]
[1735344040199,3.2078,3336.9,3336.8,0.30012]
[1735344040889,3.2078,3337.4,3336.8,1.217]
[1735344041101,0.30004,3337.7,3337.4,0.30006]
[1735344041296,3.50783,3337.8,3337.5,1.3418]
[1735344041495,3.50783,3337.8,3337.5,1.64185]
[1735344041798,1.17724,3338.5,3337.5,1.3418]
[1735344041799,3.2078,3338.2,3337.5,1.3418]
[1735344042104,3.2078,3338.2,3337.6,0.30004]
[1735344042105,0.30002,3337.9,3337.6,0.30004]
[1735344042997,3.2078,3338.2,3337.6,0.30004]
[1735344043200,0.30002,3337.9,3337.6,0.30004]
[1735344043501,3.2078,3338.2,3337.6,1.217]
[1735344043800,0.4254,3338.4,3337.6,1.51705]
[1735344043801,0.30002,3337.9,3337.6,1.51705]
[1735344044996,3.2078,3338.2,3337.6,1.217]
[1735344045202,0.30004,3337.7,3337.6,1.217]
[1735344046102,3.2078,3338.2,3337.1,3.2078]
[1735344046298,0.3001,3337.0,3336.8,0.8766]
[1735344046495,3.2078,3337.4,3336.8,0.8766]
[1735344046697,0.30009,3337.1,3336.8,1.17671]
[1735344047097,0.3001,3337.0,3336.8,0.8766]
[1735344047600,0.30009,3337.2,3336.7,4.4238]
[1735344047805,3.2078,3337.4,3336.8,0.30011]
[1735344048004,0.30011,3337.0,3336.7,4.72392]
[1735344048297,0.30012,3336.9,3336.7,4.4238]
[1735344049702,3.2078,3337.4,3336.7,4.4238]
[1735344049901,0.30012,3336.8,3336.7,4.4238]
[1735344051696,0.30012,3336.8,3336.7,3.2078]
[1735344052802,0.30011,3336.9,3336.7,3.2078]
[1735344053204,3.2078,3337.4,3336.7,3.50793]
[1735344053205,0.3001,3337.0,3336.7,3.50793]
[1735344054108,0.30011,3336.9,3336.7,3.50793]
[1735344054903,0.30011,3336.9,3336.7,3.2078]
[1735344055805,0.30011,3336.9,3336.7,3.50793]
[1735344056006,3.2078,3337.4,3336.7,3.50793]
[1735344056210,0.30009,3337.2,3336.9,0.30011]
[1735344056395,0.3001,3337.1,3336.8,0.30011]
[1735344056705,0.3001,3337.0,3336.8,0.30012]
[1735344057702,3.2078,3337.4,3336.7,3.2078]
[1735344057903,0.30012,3336.8,3336.7,3.2078]
[1735344059106,0.4423,3337.2,3336.6,0.4637]
[1735344059297,0.75024,3337.1,3336.5,0.4468]
[1735344059493,0.30014,3336.6,3336.5,0.4468]
[1735344060903,0.30015,3336.4,3336.3,3.6531]
[1735344061302,0.30015,3336.4,3336.3,3.2078]
[1735344061499,3.6559,3337.0,3336.3,3.2078]
[1735344061703,0.30015,3336.5,3336.3,3.2078]
[1735344061906,0.30015,3336.4,3336.3,3.2078]
[1735344062113,0.30015,3336.4,3336.3,3.50796]
[1735344062708,0.30015,3336.4,3336.3,3.2078]
[1735344063811,0.30015,3336.4,3336.3,3.50796]
[1735344064808,0.30015,3336.4,3336.3,3.2078]
[1735344065704,3.6559,3337.0,3336.6,0.30013]
[1735344065705,0.30012,3336.8,3336.6,0.30013]
[1735344065902,0.30012,3336.8,3336.7,1.2874]
[1735344066612,0.30015,3336.4,3336.3,3.2078]
[1735344073810,0.30015,3336.4,3336.2,3.50797]
[1735344074406,0.30016,3336.3,3336.2,3.2078]
[1735344076313,0.9311,3336.7,3336.2,3.2078]
[1735344076514,0.30016,3336.3,3336.2,3.2078]
[1735344078713,0.30018,3336.1,3336.0,0.8624]
[1735344078912,0.30018,3336.1,3336.0,0.4298]
[1735344079216,0.30023,3335.6,3335.4,8.20373883]
[1735344079717,0.9143,3336.0,3335.4,8.20373883]
[1735344080014,0.3002,3336.0,3335.7,0.30021]
[1735344080216,0.4672,3336.1,3335.4,5.48935234]
[1735344080415,0.3002,3335.9,3335.7,0.30021]
[1735344080811,0.3002,3335.9,3335.8,0.4498]
[1735344081417,0.4672,3336.1,3335.8,0.4498]
[1735344081717,0.3002,3336.0,3335.8,0.4498]
[1735344082015,0.4672,3336.1,3335.8,0.4498]
[1735344082219,0.3002,3335.9,3335.8,0.4498]
[1735344082518,0.30023,3335.6,3335.5,0.4498]
[1735344082705,0.4307,3335.8,3335.4,3.2078]
[1735344082905,0.30024,3335.5,3335.4,3.2078]
[1735344085607,0.30023,3335.6,3335.4,3.50804]
[1735344086219,0.30023,3335.6,3335.5,0.4252]
[1735344088218,0.4372,3336.0,3335.5,0.4252]
[1735344088417,3.2078,3336.6,3335.8,3.2078]
[1735344088724,3.2078,3336.6,3336.4,0.30015]
[1735344088928,3.50794,3336.6,3336.4,0.30015]
[1735344089223,0.8912,3336.8,3336.5,0.4345]
[1735344089520,0.8912,3336.8,3336.6,0.30014]
[1735344089521,1.19133,3336.8,3336.6,0.30014]
[1735344089723,0.30014,3336.6,3336.5,0.4345]
[1735344089919,0.30014,3336.6,3336.5,0.73465]
[1735344090223,0.8912,3336.8,3336.5,0.73464]
[1735344090224,0.30013,3336.7,3336.5,0.73464]
[1735344090422,0.30014,3336.6,3336.5,0.4345]
[1735344090625,0.30014,3336.6,3336.5,0.73465]
[1735344090924,0.30013,3336.7,3336.5,0.73465]
[1735344091621,0.8912,3336.8,3336.5,0.4345]
[1735344091825,1.19132,3336.8,3336.6,0.74123]
[1735344092216,3.2078,3337.2,3336.6,0.4411]
[1735344092421,0.30011,3337.0,3336.8,0.30011]
[1735344093123,3.50789,3337.2,3336.9,0.3001]
[1735344093319,3.2078,3337.2,3336.9,0.3001]
[1735344093517,3.2078,3337.2,3336.7,0.4677]
[1735344093727,0.3001,3337.0,3336.8,0.30011]
[1735344094730,3.2078,3337.2,3336.7,0.4677]
[1735344095123,0.30013,3336.7,3336.6,3.94903]
[1735344095321,0.30012,3336.8,3336.6,3.94903]
[1735344096031,3.2078,3337.2,3336.8,0.30012]
[1735344096226,0.30011,3336.9,3336.8,0.30012]
[1735344097329,0.30011,3336.9,3336.7,0.30012]
[1735344098429,0.30012,3336.8,3336.7,0.30012]
[1735344098632,0.30012,3336.8,3336.6,3.2078]
[1735344098828,0.30012,3336.8,3336.6,3.50793]
[1735344099530,3.2078,3337.2,3336.6,3.2078]
[1735344099729,0.30013,3336.7,3336.6,3.2078]
[1735344100131,0.30012,3336.8,3336.6,3.50793]
[1735344100835,0.30013,3336.7,3336.6,3.50793]
[1735344101034,0.30013,3336.7,3336.6,0.30013]
[1735344101733,3.2078,3337.2,3336.5,0.73464]
[1735344101935,0.30013,3336.7,3336.5,0.73464]
[1735344102730,0.30015,3336.5,3336.4,0.4586]
[1735344102924,0.30015,3336.5,3336.3,0.30016]
[1735344103632,0.30015,3336.4,3336.3,0.30016]
[1735344105932,0.75033,3336.7,3335.7,3.50801]
[1735344106134,0.30017,3336.2,3335.6,0.906]
[1735344106431,0.30022,3335.7,3335.5,0.4256]
[1735344106626,0.30022,3335.7,3335.5,0.72583]
[1735344109830,1.63472,3336.3,3335.4,2.28155234]
[1735344110035,0.76373,3335.6,3335.3,3.2078]
[1735344110236,0.76373,3335.6,3335.4,0.30024]
[1735344110940,0.76373,3335.6,3335.3,3.50805]
[1735344112441,0.76373,3335.6,3335.4,0.30024]
[1735344113345,0.4635,3335.6,3335.3,3.6608]
[1735344113646,0.30024,3335.4,3335.3,3.2078]
[1735344117447,0.4635,3335.6,3335.1,0.30027]
[1735344117944,0.30026,3335.2,3335.0,0.77107]
[1735344118448,0.30026,3335.2,3335.0,0.4708]
[1735344118649,0.30026,3335.2,3335.1,0.30027]
[1735344118946,0.4635,3335.6,3335.1,2.58182234]
[1735344118947,0.30026,3335.3,3335.1,2.58182234]
[1735344119141,0.30026,3335.3,3335.1,2.28155234]
[1735344119347,0.30026,3335.3,3335.1,2.58182234]
[1735344120544,0.4635,3335.6,3335.1,2.58182234]
[1735344120545,0.4482,3335.9,3335.1,2.28155234]
[1735344120745,0.8835,3335.9,3335.4,2.28155234]
[1735344120941,0.30024,3335.5,3335.4,0.30024]
[1735344121443,0.30024,3335.5,3335.3,0.30025]
[1735344121648,0.30023,3335.6,3335.4,0.30024]
[1735344121848,0.30025,3335.4,3335.3,0.30025]
[1735344122249,0.30024,3335.5,3335.3,0.30025]
[1735344123252,0.30023,3335.6,3335.5,0.30023]
[1735344123851,0.30023,3335.6,3335.2,3.2078]
[1735344124156,0.30024,3335.5,3335.3,0.30025]
[1735344124342,0.30024,3335.5,3335.4,0.76074]
[1735344126152,0.30024,3335.5,3335.4,0.4605]
[1735344127257,0.8835,3335.9,3335.4,0.4605]
[1735344127445,0.30023,3335.6,3335.5,0.76783]
[1735344127647,0.30023,3335.6,3335.5,0.4676]
[1735344128545,0.30023,3335.6,3335.5,0.76784]
[1735344128955,0.8835,3335.9,3335.2,3.2078]
[1735344128956,0.30025,3335.3,3335.2,3.2078]
[1735344131356,0.30024,3335.4,3334.9,1.19439]
[1735344131549,0.30028,3335.1,3334.9,1.19439]
[1735344133355,0.30026,3335.2,3335.1,0.30027]
[1735344133657,0.30026,3335.2,3335.0,0.73548]
[1735344134044,0.30027,3335.1,3335.0,0.73548]
[1735344134244,0.4463,3335.3,3335.0,0.73548]
[1735344134245,0.30027,3335.2,3335.0,0.73548]
[1735344134651,0.30027,3335.2,3335.0,0.73547]
[1735344137259,3.9581,3336.8,3335.2,0.75066]
[1735344137554,4.0946,3336.8,3335.8,3.2078]
[1735344137852,0.30015,3336.5,3336.3,0.30016]
[1735344138250,11.76992269,3336.9,3336.2,3.2078]
[1735344138451,11.76992269,3336.9,3336.8,0.30012]
[1735344138753,0.3001,3337.1,3336.9,0.3001]
[1735344139447,0.3001,3337.1,3336.8,0.30011]
[1735344139656,3.50787,3337.3,3337.1,0.30009]
[1735344139856,3.2078,3337.3,3336.6,4.138]
[1735344140055,0.3001,3337.1,3336.8,0.30012]
[1735344140659,0.30012,3336.8,3336.6,4.138]
[1735344140961,0.30012,3336.8,3336.6,4.43814]
[1735344141167,0.4419,3337.4,3336.5,0.4573]
[1735344141168,2.28155234,3336.7,3336.5,0.4573]
[1735344141354,3.2078,3336.9,3336.1,2.28155234]
[1735344141559,3.2078,3336.9,3336.2,0.4275]
[1735344141759,0.30014,3336.7,3336.4,3.2078]
[1735344141958,0.30012,3336.8,3336.4,3.50795]
[1735344142157,3.2078,3336.9,3336.4,3.2078]
[1735344142362,3.6497,3337.4,3336.8,3.2078]
[1735344142561,3.2078,3337.4,3337.1,0.30008]
[1735344142962,3.2078,3337.4,3336.9,0.8813]
[1735344142963,3.50786,3337.4,3336.9,0.8813]
[1735344143263,3.2078,3337.4,3336.9,0.8813]
[1735344143461,3.2078,3337.4,3337.2,0.30008]
[1735344144465,3.2078,3337.4,3337.1,0.30009]
[1735344144859,3.50787,3337.4,3337.1,0.30009]
[1735344145261,3.50787,3337.4,3337.2,0.30008]
[1735344145262,3.2078,3337.4,3337.2,0.30008]
[1735344145765,3.2078,3337.4,3337.0,2.28155234]
[1735344146064,0.30009,3337.2,3337.0,2.28155234]
[1735344146459,3.2078,3337.4,3337.0,2.28155234]
[1735344146769,3.2078,3338.0,3337.3,2.28155234]
[1735344147065,0.30001,3338.1,3337.7,3.50783]
[1735344147262,0.30001,3338.1,3337.8,0.9195]
[1735344147661,0.30002,3338.0,3337.8,0.9195]
[1735344148267,0.30001,3338.0,3337.8,0.9195]
[1735344148969,0.4383,3338.4,3337.8,0.9195]
[1735344149169,0.30002,3337.9,3337.8,0.9195]
[1735344150267,0.4383,3338.4,3337.8,0.9195]
[1735344150567,0.30002,3338.0,3337.8,0.9195]
[1735344151066,0.30006,3337.4,3337.3,3.2078]
[1735344151368,0.30006,3337.4,3337.0,3.51475234]
[1735344152568,0.4367,3337.7,3337.0,3.51475234]
[1735344152569,0.30008,3337.3,3337.0,3.51475234]
[1735344152867,0.30007,3337.4,3337.0,3.51475234]
[1735344153368,0.4367,3337.7,3337.0,3.21465234]
[1735344153567,0.30008,3337.3,3337.0,3.21465234]
[1735344153765,0.30009,3337.2,3337.0,3.21465234]
[1735344154362,3.2078,3337.3,3336.8,3.2078]
[1735344154570,0.30011,3336.9,3336.8,3.2078]
[1735344155369,0.4492,3337.0,3336.5,0.30014]
[1735344155569,0.30012,3336.8,3336.5,0.30014]
[1735344156371,0.4492,3337.0,3336.4,5.48935234]
[1735344156565,0.30014,3336.6,3336.4,5.48935234]
[1735344157761,0.30014,3336.6,3336.4,3.2078]
[1735344158071,0.30015,3336.5,3336.4,3.2078]
[1735344159167,0.4492,3337.0,3336.4,10.48935234]
[1735344159367,0.4492,3337.0,3336.9,0.30011]
[1735344159568,3.6407,3338.0,3336.8,6.70435234]
[1735344159768,0.30003,3337.9,3337.6,0.30004]
[1735344160667,0.30004,3337.7,3337.5,0.30006]
[1735344161273,0.30004,3337.8,3337.5,0.30006]
[1735344161571,0.30002,3338.0,3337.7,0.30004]
[1735344161772,0.30002,3337.9,3337.7,0.30004]
[1735344162380,0.30002,3337.9,3337.6,0.30004]
[1735344162869,0.30003,3337.8,3337.6,0.30004]
[1735344164070,4.1004,3338.4,3337.3,3.20055234]
[1735344164283,0.30007,3337.3,3337.2,3.2078]
[1735344164574,0.30007,3337.4,3337.2,3.2078]
[1735344164775,3.2078,3337.9,3337.2,3.2078]
[1735344164971,0.30007,3337.3,3337.2,3.2078]
[1735344165168,0.30007,3337.4,3337.2,3.2078]
[1735344166577,0.30006,3337.5,3337.3,0.30007]
[1735344166769,0.30006,3337.4,3337.2,3.2078]
[1735344167268,3.2078,3337.9,3337.2,3.2078]
[1735344167269,0.30007,3337.3,3337.2,3.2078]
[1735344172676,0.4547,3337.7,3337.5,0.30006]
[1735344172976,0.4547,3337.7,3337.3,0.8856]
[1735344173182,0.4547,3337.7,3337.5,0.30005]
[1735344173872,0.4547,3337.7,3337.3,0.8856]
[1735344174181,0.30005,3337.6,3337.3,1.18567]
[1735344174474,0.30005,3337.6,3337.4,0.30006]
[1735344174877,0.4547,3337.7,3337.3,0.8856]
[1735344175174,0.30006,3337.4,3337.3,0.8856]
[1735344175375,0.30007,3337.3,3337.2,3.2078]
[1735344175569,3.2078,3337.5,3336.8,4.0602]
[1735344175775,0.30011,3336.9,3336.8,3.2078]
[1735344175978,3.95796,3337.5,3336.5,0.76244]
[1735344175979,0.30013,3336.7,3336.5,0.76244]
[1735344176577,0.8926,3337.0,3336.4,3.2078]
[1735344176776,0.30015,3336.5,3336.4,3.2078]
[1735344178280,0.30014,3336.6,3336.4,3.2078]
[1735344178479,1.3351,3337.0,3336.4,3.2078]
[1735344178671,0.30015,3336.5,3336.4,3.2078]
[1735344179377,0.30013,3336.7,3336.5,0.30014]
[1735344179678,3.50789,3337.1,3336.9,0.3001]
[1735344180071,0.4507,3337.5,3336.7,2.28155234]
[1735344180072,3.50786,3337.5,3337.3,0.30007]
[1735344180272,0.30007,3337.4,3336.8,3.6388]
[1735344180467,0.30007,3337.4,3337.1,0.30008]
[1735344180775,0.30006,3337.4,3337.2,0.76828]
[1735344182174,3.2078,3337.5,3337.2,0.4682]
[1735344182374,0.30007,3337.3,3337.2,0.4682]
[1735344182578,0.30007,3337.4,3337.2,0.76827]
[1735344183479,0.30002,3338.0,3337.7,0.30003]
[1735344183780,3.2078,3338.3,3337.3,6.72835234]
[1735344184080,3.2078,3338.3,3337.5,0.30005]
[1735344184281,0.30003,3337.8,3337.4,0.4251]
[1735344184578,3.2078,3338.3,3337.4,0.4251]
[1735344184579,0.3,3338.2,3337.8,0.30003]
[1735344184877,3.2078,3338.3,3337.9,0.8853]
[1735344185073,0.3,3338.1,3337.9,1.18531]
[1735344185679,3.2078,3338.3,3337.9,0.8853]
[1735344185981,0.30002,3337.9,3337.7,3.50783]
[1735344186280,0.30001,3338.0,3337.8,0.30003]
[1735344187676,0.3,3338.1,3337.9,0.30002]
[1735344188178,0.897,3338.7,3337.7,3.2078]
[1735344188383,3.6596,3339.2,3338.4,2.28155234]
[1735344188682,0.29993,3338.9,3338.7,0.29994]
[1735344189777,3.2078,3339.2,3338.5,1.3078]
[1735344189982,0.29994,3338.9,3338.6,0.29995]
[1735344190779,0.29994,3338.8,3338.5,1.60776]
[1735344191179,0.29991,3339.1,3338.5,1.60776]
[1735344191479,0.29994,3338.9,3338.6,0.29995]
[1735344191675,0.29994,3338.9,3338.7,0.29995]
[1735344192576,3.2078,3339.2,3338.5,1.3078]
[1735344192879,0.29992,3339.0,3338.7,0.29994]
[1735344193278,3.2078,3339.2,3338.5,4.5156]
[1735344193476,0.29991,3339.1,3338.8,0.29993]
[1735344194371,0.29992,3339.0,3338.7,0.29994]
[1735344194577,0.29994,3338.8,3338.5,4.81556]
[1735344195986,3.2078,3339.2,3338.5,4.0699]
[1735344196176,0.29995,3338.7,3338.5,4.0699]
[1735344198288,0.29995,3338.7,3338.5,4.36986]
[1735344198478,3.2078,3339.2,3338.5,4.36986]
[1735344198679,0.29995,3338.7,3338.5,4.36986]
[1735344200989,3.2078,3339.2,3338.6,0.29996]
[1735344201194,3.2078,3339.6,3339.0,2.28155234]
[1735344201384,3.2078,3339.6,3339.5,0.29988]
[1735344202389,3.2078,3339.6,3339.5,0.29402168]
[1735344204385,3.2078,3340.1,3339.4,0.9038]
[1735344204588,3.50763,3340.1,3339.4,2.1408]
[1735344204789,0.29983,3340.0,3339.8,0.29984]
[1735344205686,0.18788194,3340.4,3339.6,2.28155234]
[1735344205886,0.29983,3340.1,3339.8,0.29984]
[1735344206281,0.29985,3339.9,3339.7,0.29985]
[1735344206487,0.29988,3339.5,3339.4,3.6439]
[1735344206689,0.29991,3339.1,3339.0,3.2078]
[1735344206884,0.29997,3338.5,3338.4,2.28155234]
[1735344207293,4.1167,3339.0,3338.1,2.73185234]
[1735344207491,3.95771,3338.6,3337.8,6.9504962]
[1735344207686,0.30002,3337.9,3337.8,6.9504962]
[1735344207894,0.30002,3337.9,3337.8,4.66894386]
[1735344208286,0.4346,3338.1,3336.9,5.48935234]
[1735344208588,0.75012,3337.7,3336.6,2.28155234]
[1735344208789,0.30013,3336.7,3336.6,2.28155234]
[1735344208988,0.30015,3336.5,3336.4,4.66894386]
[1735344209299,0.30018,3336.1,3336.0,2.28155234]
[1735344209791,0.30018,3336.1,3335.8,2.93803119]
[1735344210193,3.2078,3336.5,3335.8,2.93803119]
[1735344210393,0.30018,3336.2,3335.8,2.93803119]
[1735344210693,0.30018,3336.2,3335.8,3.23824119]
[1735344211095,0.30018,3336.2,3335.8,2.93803119]
[1735344212387,3.2078,3336.5,3335.6,3.2078]
[1735344212689,3.2078,3336.0,3335.0,2.93803119]
[1735344212895,3.2078,3335.9,3335.0,2.93803119]
[1735344213090,0.30023,3335.6,3335.1,0.30027]
[1735344213291,0.30022,3335.7,3335.1,3.2078]
[1735344213487,3.64,3336.4,3335.4,2.93803119]
[1735344213693,3.50796,3336.4,3335.8,0.3002]
[1735344213887,0.30017,3336.2,3335.6,0.30022]
[1735344214093,0.30017,3336.2,3335.7,0.30021]
[1735344214391,0.30016,3336.3,3335.7,0.30021]
[1735344215401,0.30017,3336.2,3335.7,0.30021]
[1735344215897,0.30018,3336.1,3335.5,3.2078]
[1735344216197,0.30018,3336.1,3335.6,0.30022]
[1735344216388,0.30017,3336.2,3335.7,0.30021]
[1735344218497,0.3002,3335.9,3335.5,3.2078]
[1735344219694,0.3002,3335.9,3335.5,3.50803]
[1735344221498,0.3002,3336.0,3335.5,3.50803]
[1735344222002,0.3002,3336.0,3335.6,0.30022]
[1735344222404,3.2078,3336.4,3335.5,3.50803]
[1735344222604,0.3002,3336.0,3335.6,0.30023]
[1735344224307,0.3002,3336.0,3335.7,3.2078]
[1735344225906,3.2078,3336.5,3335.7,3.2078]
[1735344226208,3.2078,3336.5,3335.7,3.50801]
[1735344226209,0.30019,3336.1,3335.7,3.50801]
[1735344226406,0.30019,3336.1,3335.8,0.30021]
[1735344227203,0.30017,3336.2,3335.8,0.30021]
[1735344227906,0.30017,3336.2,3335.7,3.2078]
[1735344228210,0.30017,3336.2,3335.9,0.3002]
[1735344228709,0.30019,3336.1,3335.7,3.50801]
[1735344229104,0.30019,3336.1,3335.7,3.2078]
[1735344229299,0.30019,3336.1,3335.8,0.30021]
[1735344229807,0.30018,3336.2,3335.7,3.2078]
[1735344230009,0.30018,3336.2,3335.8,0.30021]
[1735344230207,0.30018,3336.1,3335.8,0.30021]
[1735344230406,0.30018,3336.2,3335.9,0.30019]
[1735344232813,3.2078,3336.5,3335.7,3.2078]
[1735344233112,3.2078,3336.1,3335.3,3.2078]
[1735344233312,0.30023,3335.6,3335.3,3.50805]
[1735344234305,0.30023,3335.6,3335.3,0.30025]
[1735344234504,0.30025,3335.3,3335.2,4.112]
[1735344234810,0.30027,3335.2,3335.0,0.30028]
[1735344235614,0.30027,3335.1,3334.9,0.30029]
[1735344236509,0.30027,3335.2,3335.0,0.30028]
[1735344239214,3.2078,3335.6,3334.8,5.48988991]
[1735344239410,0.30026,3335.3,3335.1,0.30027]
[1735344239913,3.2078,3335.6,3335.1,2.28208991]
[1735344240110,3.2078,3335.6,3335.5,0.30024]
[1735344240514,3.50803,3335.6,3335.4,0.30024]
[1735344241312,0.30023,3335.6,3335.4,0.30024]
[1735344242010,0.30023,3335.7,3335.4,0.30024]
[1735344242411,0.30021,3335.8,3335.2,3.2078]
[1735344242610,3.50799,3336.0,3335.8,0.30021]
[1735344242812,0.3002,3335.9,3335.7,0.30022]
[1735344243014,0.3002,3335.9,3335.3,0.452]
[1735344243209,0.3002,3335.9,3335.6,0.30022]
[1735344243409,0.30023,3335.6,3335.4,0.30024]
[1735344243816,0.30025,3335.3,3335.2,3.2078]
[1735344244016,0.30026,3335.2,3335.0,0.30027]
[1735344244415,0.30026,3335.3,3335.1,0.30027]
[1735344244719,6.18491,3335.9,3334.8,5.48988991]
[1735344245010,3.2078,3335.6,3334.8,5.48988991]
[1735344245206,0.30026,3335.3,3335.1,0.30027]
[1735344245714,3.2078,3335.6,3334.8,5.48988991]
[1735344245919,0.30028,3335.0,3334.8,5.79017991]
[1735344246215,3.2078,3335.1,3334.4,0.30033]
[1735344246411,0.30032,3334.6,3334.3,3.50813]
[1735344246817,0.30033,3334.5,3334.3,3.50813]
[1735344247015,0.4366,3335.0,3334.3,3.50813]
[1735344247313,0.30032,3334.6,3334.3,3.50814]
[1735344247515,0.30037,3334.1,3333.9,3.2078]
[1735344247711,0.30036,3334.2,3333.9,3.50817]
[1735344247906,3.2078,3334.7,3333.9,3.2078]
[1735344248112,3.2078,3334.7,3334.1,2.28208991]
[1735344248412,0.30033,3334.5,3334.3,0.30034]
[1735344248915,0.30031,3334.7,3334.5,0.30032]
[1735344249115,0.30031,3334.7,3334.4,0.30033]
[1735344249309,0.30029,3334.9,3334.4,0.30033]
[1735344249514,0.30031,3334.7,3334.4,0.30033]
[1735344249912,0.30033,3334.5,3334.3,3.50814]
[1735344250215,0.4366,3335.0,3334.3,3.2078]
[1735344250216,0.30033,3334.4,3334.3,3.2078]
[1735344253516,0.75074,3334.9,3333.8,2.28208991]
[1735344253517,3.2078,3334.6,3333.8,3.2078]
[1735344253723,0.30038,3333.9,3333.8,3.2078]
[1735344254618,0.30038,3334.0,3333.8,3.2078]
[1735344254819,0.30038,3333.9,3333.8,3.2078]
[1735344256417,0.30039,3333.8,3333.6,0.30041]
[1735344259617,0.3004,3333.7,3333.5,1.20131]
[1735344260018,0.44,3334.2,3333.5,0.9009]
[1735344260321,0.3004,3333.7,3333.5,1.20132]
[1735344261425,0.30027,3335.2,3334.9,0.30028]
[1735344261721,2.919,3337.7,3334.8,5.48988991]
[1735344261722,3.2078,3336.0,3334.8,5.48988991]
[1735344261923,3.2078,3336.0,3335.7,0.30022]
[1735344262127,3.2078,3336.5,3335.7,1.239]
[1735344262321,3.2078,3336.5,3336.4,0.30015]
[1735344262822,3.2078,3336.5,3336.1,0.4552]
[1735344263125,3.2078,3336.5,3336.2,0.30017]
[1735344263425,3.2078,3336.5,3336.3,0.30016]
[1735344264019,0.30013,3336.7,3336.3,0.30016]
[1735344264414,0.30014,3336.6,3336.2,0.30017]
[1735344264727,3.2078,3337.1,3336.1,0.4552]
[1735344265023,0.30017,3336.3,3336.0,3.50799]
[1735344265222,3.2078,3336.3,3335.8,0.4283]
[1735344265419,0.30018,3336.2,3335.8,0.7285]